Cogmind - Beta 14 @@@ ROGUE MODE // 2024.11.16 @ 13:53:33 Player: Shimmyarah Result: Destroyed by G-34 Mercenary with Small Laser Performance ------------- Evolutions (0) 0 Regions Visited (1) 200 Robots Destroyed (22) 110 Value Destroyed (196) 196 Prototype IDs (2) 40 Alien Tech Used (0) 0 Bonus (0) 0 TOTAL SCORE: 546 Bonus ------- None Cogmind --------- Core Integrity 0/250 Matter 152/300 Energy 140/250 System Corruption 1% Temperature Cool (18) Movement Rolling (95) Ox1 Location -10/Materials Parts ------- > --- POWER (1) -------- Ion Engine > --- PROPULSION (2) --- Wheel Wheel > --- UTILITY (2) ------ Medium Storage Unit Structural Scanner > --- WEAPON (2) ------- Light Cannon Light Cannon > --- INVENTORY (10) --- Wheel Compact Wheel Improved Terrain Scanner Seismic Detector Grenade Launcher Mining Laser Peak State ------------ > --- POWER ------------ Ion Engine > --- PROPULSION ------- Wheel Compact Wheel > --- UTILITY ---------- Small Storage Unit Improved Terrain Scanner > --- WEAPON ----------- Medium Laser Light Assault Rifle > --- INVENTORY -------- Ion Engine Wheel Wheel Small Matter Pod Small Laser Mining Laser Mining Laser [Rating: 9] Favorites ----------- Power Ion Engine Engine Ion Engine Propulsion Wheel Wheel Wheel Utility Small Storage Unit Device Seismic Detector Storage Small Storage Unit Weapon Light Cannon Energy Gun Medium Laser Ballistic Gun Light Assault Rifle Ballistic Cannon Light Cannon Build | -11 -10 ------- Run | Yrd Mat Slots Evolved . | . . Power . | . . Propulsion . | . . Utility . | . . Weapon . | . . Parts Attached 19 | 9 10 Power 2 | 1 1 Engine 2 | 1 1 Core . | . . Reactor . | . . Propulsion 5 | 3 2 Treads . | . . Leg . | . . Wheel 5 | 3 2 Hover . | . . Flight . | . . Utility 6 | 3 3 Device 3 | 2 1 Storage 3 | 1 2 Processor . | . . Hackware . | . . Protection . | . . Artifact . | . . Weapon 6 | 2 4 Energy Gun 1 | 1 . Energy Cannon . | . . Ballistic Gun 1 | 1 . Ballistic Cannon 4 | . 4 Launcher . | . . Special Weapon . | . . Impact Weapon . | . . Slashing Weapon . | . . Piercing Weapon . | . . Special Melee Weapon . | . . Unidentified Prototypes . | . . Parts Lost 3 | . 3 Power 1 | . 1 Propulsion 1 | . 1 Utility . | . . Weapon 1 | . 1 Highest Loss Streak 2 | . 2 To Critical Strikes . | . . Average Slot Usage (%) 97 | . 97 Engine 13 | . 13 Wheel 26 | . 26 Device 14 | . 14 Storage 14 | . 14 Energy Gun 5 | . 5 Ballistic Gun 5 | . 5 Ballistic Cannon 15 | . 15 Peak Build Rating 9 | 9 8 Average Rating 7 | 6 7 On Entrance 4 | . 8 Naked Turns . | . . Heaviest Build 22 | 14 22 Greatest Support 26 | 26 20 Greatest Overweight (x) 1 | 1 1 Average Overweight (x) . | . . Largest Inventory Capacity 10 | 8 10 Average Capacity 8 | 7 9 Most Carried 10 | 8 10 Average Carried 6 | 5 7 Final Capacity 10 | 8 10 Final Carried 8 | 8 6 Class Distribution -------------------- 100% | Mutant Dominant Class ---------------- Mutant | -10/Materials Resources | -11 -10 ----------- Run | Yrd Mat Matter Collected 639 | 342 297 Remotely . | . . Salvage Created 500 | 243 257 Parts 39 | 16 23 Haulers Intercepted 1 | . 1 Recyclers Shooed 1 | . 1 Parts Field Recycled . | . . Retrieved Matter . | . . Parts Self-Destructed . | . . Prevented . | . . Kills | -11 -10 ------- Run | Yrd Mat Combat Hostiles Destroyed 7 | . 7 Melee 1 | . 1 Guns 1 | . 1 Cannons 5 | . 5 Classes Destroyed 7 | 3 4 Worker 3 | 2 1 Builder 1 | . 1 Tunneler 8 | 8 . Hauler 1 | . 1 Recycler 2 | 1 1 Swarmer 5 | . 5 Grunt 2 | . 2 Best Kill Streak 4 | 4 3 Combat Bots Only 2 | . 2 Max Kills in Single Turn 1 | 1 1 Gunslinging . | . . Exploded . | . . Melee 1 | . 1 Uniques/NPCs Destroyed . | . . Combat | -11 -10 -------- Run | Yrd Mat Hostile Shots Fired 107 | . 107 Missed 27 | . 27 Damage Taken 710 | . 710 Core 252 | . 252 Absorbed by Shields . | . . Regen/Repaired (Parts) 108 | . 108 Core Remaining (%) 100 | 100 . Volleys Fired 108 | 43 65 Largest 2 | 2 2 Hottest 70 | 70 70 Shots Fired 213 | 86 127 Gun 137 | 86 51 Cannon 76 | . 76 Launcher . | . . Special . | . . Kinetic 144 | 43 101 Thermal 69 | 43 26 Explosive . | . . Electromagnetic . | . . Robot Hit Streak 13 | 13 9 Robot Miss Streak 14 | 3 14 Penetration Max . | . . Secondary Targets . | . . Shots Hit Robots 111 | 53 58 Core Hits 36 | 16 20 Critical Kills . | . . Critical Parts Destroyed . | . . Critical Strikes 9 | 6 3 Burn 6 | 6 . Blast 3 | . 3 Melee Attacks . | . . Impact . | . . Slashing . | . . Piercing . | . . Sneak Attacks . | . . Combat Hostiles . | . . Follow-up Attacks . | . . Damage Inflicted 1287 | 519 768 Guns 816 | 519 297 Cannons 462 | . 462 Explosions . | . . Melee . | . . Ramming 9 | . 9 Kinetic 775 | 180 595 Thermal 503 | 339 164 Explosive . | . . Electromagnetic . | . . Impact . | . . Slashing . | . . Piercing . | . . Highest Corruption 1 | . 1 Average Corruption 1 | . 1 Corruption Purged . | . . Corruption Blocked . | . . Effects 4 | . 4 Matter Fused 1 | . 1 Energy Discharges 1 | . 1 Data Loss (minor) 1 | . 1 Weapon Failures 1 | . 1 Overload Shots . | . . Overflow Damage . | . . Projectiles . | . . Explosions . | . . Melee . | . . Knockbacks 18 | . 18 Impact . | . . Kinetic 15 | . 15 Secondary 3 | . 3 Self-Inflicted Damage 4 | . 4 Shots . | . . Rammed 2 | . 2 Targets Rammed 2 | . 2 Kicked . | . . Crushed . | . . Highest Temperature 230 | 230 207 Average Temperature 73 | 71 75 Received Heat Transfer 120 | . 120 Effects 1 | 1 . Energy Bleed 1 | 1 . Siege Activations . | . . Robots Corrupted . | . . Combat Hostiles . | . . Parts Fried . | . . Impact Corruptions . | . . Robots Melted . | . . Combat Hostiles . | . . Parts Melted 6 | 5 1 Heat Transferred 1924 | 1443 481 Parts Sabotaged . | . . Parts Stolen . | . . Parts Stripped . | . . Power Chain Reactions . | . . Alert | -11 -10 ------- Run | Yrd Mat Peak Influence 167 | 55 167 Initial 35 | . 35 Average 58 | 28 71 Maximum Alert Level . | . . Low Security (%) 100 | 100 100 Level 1 . | . . Level 2 . | . . Level 3 . | . . Level 4 . | . . Level 5 . | . . High Security . | . . Max Security . | . . Squads Dispatched 1 | . 1 Investigation 1 | . 1 Extermination . | . . Reinforcement . | . . Assault . | . . Garrison . | . . Intercept . | . . Searches Triggered . | . . Construction Impeded . | . . Haulers Reinforced . | . . Active Scanning Responses . | . . Cargo Convoy Interrupts . | . . Stealth | -11 -10 --------- Run | Yrd Mat Distress Signals 5 | . 5 Communications Jammed . | . . Distress Signals . | . . Times Spotted 18 | . 18 Peak Tracking Total 7 | . 7 Tactical Retreats . | . . Traps | -11 -10 ------- Run | Yrd Mat Traps Triggered 1 | . 1 Indirectly . | . . Trap Hack Attempts . | . . Triggered . | . . Disarmed . | . . Reprogrammed . | . . Reused . | . . Traps Extracted . | . . Installed . | . . Triggered . | . . Machines | -11 -10 ---------- Run | Yrd Mat Machines Disabled . | . . Max in Single Turn . | . . Machines Repaired . | . . Machines Dismantled . | . . Machines Sabotaged . | . . Overloaded Fab Kills . | . . Hacking | -11 -10 --------- Run | Yrd Mat Machines Accessed 5 | . 5 Terminals 4 | . 4 Fabricators . | . . Repair Stations 1 | . 1 Recycling Units . | . . Scanalyzers . | . . Garrison Access . | . . Total Hacks 18 | . 18 Successful 9 | . 9 Failed 9 | . 9 Catastrophic . | . . Database Lockouts . | . . Manual 11 | . 11 Terminals 15 | . 15 Fabricators . | . . Repair Stations 3 | . 3 Recycling Units . | . . Scanalyzers . | . . Garrison Access . | . . Terminal Hacks 3 | . 3 Record 1 | . 1 Robot Analysis 1 | . 1 Prototype ID Bank 1 | . 1 Fabricator Hacks . | . . Repair Station Hacks 2 | . 2 Scan Component 1 | . 1 Repair 1 | . 1 Recycling Unit Hacks . | . . Scanalyzer . | . . Garrison Access Hacks . | . . Unauthorized Hacks 4 | . 4 Terminals 4 | . 4 Botnet 3 | . 3 Skim 1 | . 1 Fabricators . | . . Repair Stations . | . . Recycling Units . | . . Scanalyzers . | . . Garrison Access . | . . Data Cores Recovered . | . . Used . | . . Hacking Detections 5 | . 5 Full Trace Events . | . . Feedback Events . | . . Feedback Blocked . | . . Robot Schematics Acquired . | . . Robots Built . | . . Authchips . | . . Time . | . . Total Robot Build Rating . | . . Part Schematics Acquired . | . . Parts Built . | . . Authchips . | . . Time . | . . Total Part Build Rating . | . . Parts Repaired 1 | . 1 Time 26 | . 26 Parts Recycled . | . . Recycled Matter . | . . Retrieved Matter . | . . Retrieved Components . | . . Parts Scanalyzed . | . . Part Schematics Acquired . | . . Parts Damaged . | . . Bothacking | -11 -10 ------------ Run | Yrd Mat Used RIF Installer . | . . Robots Hacked . | . . Non-combat . | . . Combat . | . . Robot Hacks Applied . | . . Relay Couplers Released . | . . Fabnet Peak Effective % . | . . Robots Rewired . | . . Allies Hacked . | . . Hacks Repelled . | . . Allies | -11 -10 -------- Run | Yrd Mat Total Allies . | . . Largest Group . | . . Highest-Rated Group . | . . Highest-Rated Ally . | . . Total Orders . | . . Ally Attacks . | . . Total Damage . | . . Kills . | . . Allies Corrupted . | . . Allies Melted . | . . Intel | -11 -10 ------- Run | Yrd Mat Robot Analysis Total 1 | . 1 Derelict Logs Recovered . | . . Drone Launches . | . . Drone Recoveries . | . . Exploration | -11 -10 ------------- Run | Yrd Mat Turns Passed 998 | 312 686 Spaces Moved 634 | 190 444 Core 8 | 8 . Treads . | . . Legs . | . . Wheels 626 | 182 444 Hover . | . . Flight . | . . Fastest Speed 50 | 50 80 Average Speed 85 | 86 85 Slowest Speed 95 | 95 95 Overloaded Moves . | . . Propulsion Burnouts . | . . Robots Hopped . | . . Cave-ins Triggered . | . . Exploration Rate (%) 28 | 5 52 Regions Visited 1 Branch Regions . Pre-discovered Areas . | . . Known Exits Taken . | . . Unknown Exits Taken 1 | 1 . Scrap Searched . | . . Spaces Dug . | . . Terrain Destroyed . | . . Melee . | . . Projectile . | . . AOE . | . . Terrain Rammed . | . . Walls Destroyed . | . . Machines Disabled . | . . Actions | -11 -10 --------- Run | Yrd Mat Total 890 | 260 630 Wait 94 | . 94 Move 633 | 189 444 Hop . | . . Pick Up 25 | 17 8 Fast Attach . | . . Attach 14 | 8 6 Detach . | . . Swap 5 | 1 4 Drop 9 | 2 7 Fire 108 | 43 65 Melee . | . . Ram 2 | . 2 Kick . | . . Crush . | . . Escape Stasis . | . . Rewire . | . . Trap . | . . Miscellaneous . | . . Route ------- -11/Scrapyard -10/Materials (discovered 1 exit: [*Min]) History --------- Turn | Location | Event 4 | -11/Scrapyard | Discovered new exit (range 15) 313 | -11/Scrapyard | Entered Materials 314 | -10/Materials | Build established: Mutant 464 | -10/Materials | Discovered new exit (range 7) 680 | -10/Materials | Core integrity fell below 50% 814 | -10/Materials | Repaired Lgt. Cannon 913 | -10/Materials | Derelicts attacked the area 960 | -10/Materials | Core integrity fell below 20% 999 | -10/Materials | Destroyed by G-34 Mercenary with Small Laser Last Messages --------------- respectable firepower at a low weight for maintaining high flight speeds. Swarmer squads are particularly susceptible to explosives. 00870_ K-01 Serf collects debris. 00913_ ALERT: Derelict incursion detected, rerouting patrols to target area. 00968_ G-34 Mercenary destroyed. 00970_ Ion Engine destroyed. 00972_ G-47 Trooper knocked back. 00978_ G-47 Trooper suffers critical hit (Blast). 00978_ Destroyed Lgt. Nuclear Core. 00978_ G-47 Trooper knocked back. 00981_ K-01 Serf knocked back. 00983_ Lgt. Cannon destroyed. 00986_ G-47 Trooper Aluminum Leg blasted off. 00987_ W-16 Scout sends out distress signal. 00990_ G-47 Trooper Particle Gun blasted off. 00990_ G-47 Trooper knocked back. 00993_ W-16 Scout knocked back. 00997_ G-34 Mercenary knocked back. Map ----- +----------------------------------------------------+ | ?????????## ##??## # | | ?????????## ##??## # | | ????????### ###### # | | ????????#######+########## # | | ????????## # | | ????????## # | | ????????## #### | | ????????## """ """ " " ##?# | | ????????## """ """ "R" ##?? | | ????????## """ """ """ ###? | | ????????## ##? | | ????????## ? | | ????????## ##### | | ????????## ##### | | ????????## ##### ### | | ????????## ################ ### | | ???????### + ######### ##? | | ???????### # ##??????? ##? | | ???????##T # ##??????? ##? | | ???????### # """ ##??????? ##? | | ???????### # """ ##??????? ##? | | ????????## # """ ##??????????? | | ?######### #########??????????? | | ?######### ####### ??????????? | | ?## # # ???????????? | | ?## """ @#* # ??? ##?????? | | ?## """ ;%! = + ##?????? | | ?## """ #gg%[ # ##?????? | | ?## # % # ? ##?????? | | ?## # ## ???????????? | | ?######### ""## ???????????? | | ?# + ""##????????????? | | ????????"# T"##????????????? | | ????????"# ""##????????????? | | ????????"# ""##????????????? | | ???????? # ##????????????? | | ????????## ##????????????? | | ?????????###### ##????????????? | | ????????? # ????????????? | | ???????????????? ????????????? | | ???????????????? ??????????????? | | ????????????????????????????????? | | ????????????????????????????????? | | ????????????????????????????????? | | ????????????????????????????????? | | ????????????????????????????????? | | ????????????????????????????????? | | ????????????????????????????????? | | ????????????????????????????????? | | | +----------------------------------------------------+ Best States ------------- Heat Dissipation 25 Energy Generation 10 Energy Capacity 250 Matter Stores 300 Matter Capacity 300 Sight Range 16 Terrain Scan Range 16 Terrain Scan Density 10 Evasion (%) 44 Item Schematics ----------------- None Robot Schematics ------------------ None Fabricated ------------ Nothing Alien Tech Used ----------------- None Achievements -------------- Fist Fight Challenges ------------ None Game ------ Seed HoverOvertunedConstruct Manual? 0 Play Time 00:12:47 Cumulative 44.1 hours Start 2024.11.16 @ 13:44:10 End 2024.11.16 @ 13:53:33 Sessions 1 Manual Loads 0 Difficulty Rogue Special Mode None Game No. 83 Rogue 83 Adventurer 0 Explorer 0 Win Type - Total 0 Types 0/0/0/0/0/0/0/0/0 Lore% 16 Gallery% 28 Achievement% 25 Wizard Run 0 Options --------- Layout 1 ASCII 0 Keyboard 0 Movement Arrows Keybinds 0 Fullscreen 1 Font 32/SmallcapsGlow Map View 55x47 Zoom Use 12% Tactical HUD 1 Map Filters NONE Filters NONE Steam 1 RUN: bb35c435-25da-40a6-a0b9-f5f024eeffa9